bitfinex/quotes_BTCUSD_20241208
["timestamp","ask_amount","ask_price","bid_price","bid_amount"]
[1733677871280,0.16793738,99767.0,99766.0,0.00413356]
[1733677871507,0.16793738,99767.0,99766.0,0.00313356]
[1733677874019,0.14820073,99767.0,99766.0,0.00313356]
[1733677874425,0.14820073,99767.0,99766.0,0.09321344]
[1733677875018,0.27549938,99767.0,99766.0,0.00313356]
[1733677876547,0.27549938,99767.0,99763.0,0.17356056]
[1733677876753,0.10002951,99766.0,99763.0,0.17356056]
[1733677876959,0.10002951,99766.0,99765.0,0.27050288]
[1733677877979,0.10002951,99766.0,99765.0,0.180423]
[1733677878415,0.10002951,99766.0,99763.0,0.001]
[1733677878416,0.04401804,99764.0,99763.0,0.001]
[1733677878608,0.04401804,99764.0,99760.0,0.0008665]
[1733677878609,0.14404755,99764.0,99762.0,0.13512612]
[1733677878822,0.10002951,99763.0,99762.0,0.13512612]
[1733677879300,0.10002951,99763.0,99761.0,0.13512612]
[1733677879559,0.10002951,99763.0,99760.0,0.09095203]
[1733677879788,0.09241669,99761.0,99760.0,0.0008665]
[1733677880030,0.1924462,99761.0,99760.0,0.0008665]
[1733677880279,0.4191772,99761.0,99760.0,0.0008665]
[1733677881310,0.4191772,99761.0,99760.0,0.0038665]
[1733677881544,0.4191772,99761.0,99760.0,0.0008665]
[1733677881745,0.4201772,99761.0,99760.0,0.0008665]
[1733677881980,0.4201772,99761.0,99760.0,0.0018665]
[1733677882436,0.4201772,99761.0,99760.0,0.0008665]
[1733677884352,0.42432588,99761.0,99760.0,0.0008665]
[1733677889227,0.42432588,99761.0,99760.0,0.00055359]
[1733677896756,0.72455588,99761.0,99760.0,0.00055359]
[1733677901481,0.80555588,99761.0,99760.0,0.00055359]
[1733677902113,0.80555588,99761.0,99744.0,0.00633879]
[1733677902329,0.180446,99753.0,99744.0,0.00633879]
[1733677902550,0.04401804,99746.0,99745.0,0.00313427]
[1733677902749,0.14404755,99746.0,99745.0,0.00313427]
[1733677902964,0.14865797,99746.0,99745.0,0.00313427]
[1733677904085,0.14865797,99746.0,99745.0,0.00913427]
[1733677905131,0.14865797,99746.0,99745.0,0.01213427]
[1733677905782,0.14865797,99746.0,99745.0,0.01526856]
[1733677905999,0.14865797,99746.0,99745.0,0.01213429]
[1733677908387,0.14404755,99746.0,99745.0,0.01213429]
[1733677908812,0.14865659,99746.0,99745.0,0.01213429]
[1733677913015,0.14865659,99746.0,99745.0,0.01208629]
[1733677914561,0.14404755,99746.0,99745.0,0.01208629]
[1733677914954,0.14865751,99746.0,99745.0,0.01208629]
[1733677915996,0.14865751,99746.0,99745.0,0.10212305]
[1733677916199,0.14865751,99746.0,99745.0,0.10215456]
[1733677917648,0.14865751,99746.0,99745.0,0.10217042]
[1733677917873,0.14865751,99746.0,99745.0,0.01208629]
[1733677918315,0.14865751,99746.0,99745.0,0.10217072]
[1733677918517,0.14865751,99746.0,99745.0,0.01208629]
[1733677918723,0.14404755,99746.0,99745.0,0.10217936]
[1733677918924,0.14865751,99746.0,99745.0,0.10217936]
[1733677919125,0.14404755,99746.0,99745.0,0.01208629]
[1733677919333,0.14865751,99746.0,99745.0,0.00208629]
[1733677920460,0.14865751,99746.0,99745.0,0.1371887]
[1733677921720,0.14404755,99746.0,99745.0,0.1371887]
[1733677921928,0.14865751,99746.0,99745.0,0.1371887]
[1733677922348,0.14865751,99746.0,99745.0,0.33477121]
[1733677922581,0.14404755,99746.0,99745.0,0.33477121]
[1733677923045,0.14404755,99746.0,99745.0,0.46997189]
[1733677923467,0.14404755,99746.0,99745.0,0.33477121]
[1733677924516,0.14865751,99746.0,99745.0,0.51490776]
[1733677924729,0.14865751,99746.0,99745.0,0.33477121]
[1733677924942,0.14865751,99746.0,99745.0,0.51513312]
[1733677925148,0.14865751,99746.0,99745.0,0.33477121]
[1733677925373,0.14865751,99746.0,99745.0,0.5151346]
[1733677925548,0.14865751,99746.0,99745.0,0.33268492]
[1733677926934,0.14865751,99746.0,99745.0,0.55785561]
[1733677927151,0.14865751,99746.0,99745.0,0.33268492]
[1733677927568,0.14865751,99746.0,99745.0,0.55785561]
[1733677927785,0.14865751,99746.0,99745.0,0.33268492]
[1733677928443,0.14865751,99746.0,99745.0,0.55785561]
[1733677928658,0.14865751,99746.0,99745.0,0.33268492]
[1733677929123,0.14865751,99746.0,99745.0,0.55785561]
[1733677929516,0.14865751,99746.0,99745.0,0.33268492]
[1733677930049,0.23025751,99746.0,99745.0,0.33268492]
[1733677930286,0.23025751,99746.0,99744.0,0.00633879]
[1733677930287,0.04839865,99745.0,99744.0,0.00633879]
[1733677930532,0.62911816,99745.0,99744.0,0.00633879]
[1733677930845,0.63372651,99745.0,99744.0,0.00633879]
[1733677931304,0.67774455,99745.0,99744.0,0.00947347]
[1733677931543,0.80464455,99745.0,99744.0,0.00947347]
[1733677931805,0.80464455,99745.0,99744.0,0.00633879]
[1733677932084,0.80564455,99745.0,99744.0,0.00633879]
[1733677932308,0.87864455,99745.0,99744.0,0.00633879]
[1733677933299,0.87964455,99745.0,99744.0,0.00633879]
[1733677933525,0.09401804,99741.0,99740.0,0.0017308]
[1733677933770,0.4540132,99741.0,99740.0,0.0017308]
[1733677934005,0.75883883,99741.0,99740.0,0.0017308]
[1733677934720,0.80863883,99741.0,99740.0,0.0017308]
[1733677934956,0.81063883,99741.0,99740.0,0.0017308]
[1733677936190,0.63017183,99741.0,99740.0,0.0017308]
[1733677936431,0.50327183,99741.0,99740.0,0.0017308]
[1733677937185,0.50327183,99741.0,99731.0,0.17534952]
[1733677937407,0.04401804,99732.0,99731.0,0.17534952]
[1733677937649,0.14404755,99732.0,99731.0,0.17534952]
[1733677938117,0.1486234,99732.0,99731.0,0.17534952]
[1733677938337,0.14404755,99732.0,99731.0,0.31043531]
[1733677938565,0.14404755,99732.0,99731.0,0.26540763]
[1733677938779,0.14417384,99732.0,99731.0,0.26540754]
[1733677939845,0.1487498,99732.0,99731.0,0.26540754]
[1733677940481,0.1487498,99732.0,99731.0,0.64285997]
[1733677940719,0.1487498,99732.0,99731.0,0.50777418]
[1733677940971,0.14417384,99732.0,99731.0,0.64285291]
[1733677941210,0.14417384,99732.0,99731.0,0.50777418]
[1733677942833,0.14417384,99732.0,99731.0,0.50778369]
[1733677945362,0.00012629,99732.0,99731.0,0.55298369]
[1733677945584,0.00012629,99732.0,99731.0,0.63388369]
[1733677946473,0.00012629,99732.0,99731.0,0.63688369]
[1733677946699,0.00012629,99732.0,99731.0,0.63488369]
[1733677946908,0.00012629,99732.0,99731.0,0.63788369]
[1733677947350,0.00012629,99732.0,99731.0,0.63988369]
[1733677949273,0.00012629,99732.0,99731.0,0.64301801]
[1733677952125,0.30023,99741.0,99740.0,0.180469]
[1733677952627,0.30435178,99741.0,99740.0,0.51290317]
[1733677952875,0.30023,99741.0,99740.0,0.51290317]
[1733677953112,0.30480896,99741.0,99740.0,0.51290317]
[1733677955330,0.30480896,99741.0,99740.0,0.69300317]
[1733677955537,0.30480896,99741.0,99740.0,0.69260393]
[1733677955739,0.30480896,99741.0,99740.0,0.70270102]
[1733677956467,0.30480896,99741.0,99740.0,0.78400102]
[1733677956877,0.30480896,99741.0,99740.0,1.05415195]
[1733677958955,0.30480896,99741.0,99740.0,0.98120102]
[1733677959161,0.30023,99741.0,99740.0,0.98678433]
[1733677959538,0.0017312,99750.0,99749.0,0.411752]
[1733677959743,0.0017312,99750.0,99749.0,0.74418617]
[1733677961549,0.0017312,99750.0,99749.0,0.92404827]
[1733677961880,0.0017312,99750.0,99749.0,0.92804827]
[1733677962088,0.0017312,99750.0,99749.0,0.93004827]
[1733677962372,0.0017312,99750.0,99749.0,0.93753586]
[1733677962572,0.0017312,99750.0,99749.0,0.75713374]
[1733677965578,0.0017312,99750.0,99749.0,0.89193129]
[1733677966255,0.0017312,99750.0,99749.0,0.56003714]
[1733677967648,0.0017312,99750.0,99749.0,0.42523959]
[1733677969501,0.05013185,99770.0,99749.0,0.57636466]
[1733677969703,0.05013185,99770.0,99769.0,0.180416]
[1733677970141,0.05013185,99770.0,99769.0,0.18790577]
[1733677970354,0.05013185,99770.0,99769.0,0.180416]
[1733677970557,0.05013185,99770.0,99769.0,0.18790644]
[1733677970767,0.05013185,99770.0,99769.0,0.180416]
[1733677970972,0.05030423,99770.0,99769.0,0.18790644]
[1733677971175,0.05230423,99770.0,99769.0,0.18790644]
[1733677971401,0.05630423,99770.0,99769.0,0.18790644]
[1733677971816,0.05430423,99770.0,99769.0,0.18790644]
[1733677972025,0.00790558,99770.0,99769.0,0.18790644]
[1733677972233,0.05630423,99770.0,99769.0,0.18790644]
[1733677976772,0.00790558,99770.0,99769.0,0.18790644]
[1733677977007,0.05630423,99770.0,99769.0,0.18790644]
[1733677977565,0.05630423,99770.0,99769.0,0.18791335]
[1733677982288,0.00790558,99770.0,99769.0,0.18791335]
[1733677982474,0.00790558,99770.0,99769.0,0.18891559]
[1733677983351,0.00590558,99770.0,99769.0,0.18891559]
[1733677983564,0.00590558,99770.0,99769.0,0.18991559]
[1733677983763,0.00190558,99770.0,99769.0,0.18991559]
[1733677983973,0.00290558,99770.0,99769.0,0.19691559]
[1733677984178,0.00290558,99770.0,99769.0,0.19591559]
[1733677984429,0.00290558,99770.0,99769.0,0.19891559]
[1733677984668,0.00290558,99770.0,99769.0,0.19791335]
[1733677986134,0.00290558,99770.0,99769.0,0.34791335]
[1733677986337,0.00290558,99770.0,99769.0,0.81427539]
[1733677986543,0.0813,99795.0,99793.0,0.180373]
[1733677986797,0.00012668,99794.0,99783.0,0.1519505]
[1733677987005,0.00012668,99794.0,99782.0,0.08982001]
[1733677987006,0.00526354,99794.0,99793.0,0.180373]
[1733677987205,0.00012668,99794.0,99793.0,0.180373]
[1733677987662,0.00012668,99794.0,99793.0,0.18887893]
[1733677987866,0.00012668,99794.0,99793.0,0.18137491]
[1733677988074,0.00412668,99794.0,99793.0,0.18137491]
[1733677988297,0.00012668,99794.0,99793.0,0.27119492]
[1733677988504,0.00212668,99794.0,99793.0,0.27019301]
[1733677988711,0.00612668,99794.0,99793.0,0.180373]
[1733677988915,0.00212668,99794.0,99793.0,0.18887963]
[1733677989325,0.00312668,99794.0,99793.0,0.27869964]
[1733677989528,0.00312668,99794.0,99793.0,0.180373]
[1733677989989,0.00312668,99794.0,99793.0,0.18787768]
[1733677990207,0.00112668,99794.0,99793.0,0.18887959]
[1733677990682,0.00212668,99794.0,99793.0,0.18887959]
[1733677991512,0.00212668,99794.0,99793.0,0.26607959]
[1733677991726,0.00212668,99794.0,99793.0,0.50489769]
[1733677991936,0.00212668,99794.0,99793.0,0.41507768]
[1733677992152,0.00212668,99794.0,99793.0,0.42496885]
[1733677992398,0.00212668,99794.0,99793.0,0.80322168]
[1733677992663,0.00212668,99794.0,99793.0,0.98446305]
[1733677992917,0.00212668,99794.0,99793.0,0.80482303]
[1733677993147,0.0017322,99810.0,99809.0,0.180344]
[1733677993623,0.00693422,99810.0,99809.0,0.18784868]
[1733677993861,0.00178962,99810.0,99809.0,0.18784868]
[1733677994287,0.00578962,99810.0,99809.0,0.18784868]
[1733677994528,0.18711913,99810.0,99809.0,0.18884868]
[1733677994949,0.19230878,99810.0,99809.0,0.18884868]
[1733677997741,0.19230878,99810.0,99809.0,0.181344]
[1733678002378,0.19230878,99810.0,99809.0,0.001]
[1733678002379,0.24070743,99810.0,99809.0,0.001]
[1733678002582,0.33082547,99810.0,99809.0,0.001]
[1733678005530,0.3506178,99810.0,99809.0,0.001]
[1733678006206,0.36066621,99810.0,99809.0,0.001]
[1733678013571,0.28472547,99810.0,99809.0,0.001]
[1733678013830,0.11100878,99810.0,99809.0,0.001]
[1733678014266,0.11100878,99810.0,99809.0,0.00848541]
[1733678014473,0.01097927,99810.0,99809.0,0.00848541]
[1733678015978,0.00578962,99810.0,99809.0,0.00848541]
[1733678017776,0.00578962,99810.0,99809.0,0.00948723]
[1733678018004,0.00578962,99810.0,99809.0,0.00848541]
[1733678018630,0.00578962,99810.0,99809.0,0.00948721]
[1733678018840,0.00578962,99810.0,99809.0,0.00848541]
[1733678019709,0.00178962,99810.0,99809.0,0.00848541]
[1733678020130,0.00278962,99810.0,99809.0,0.00748541]
[1733678020570,0.00178962,99810.0,99809.0,0.01048541]
[1733678020995,0.00178962,99810.0,99809.0,0.01148717]
[1733678022350,0.00178962,99810.0,99809.0,0.13558717]
[1733678022575,0.00178962,99810.0,99809.0,0.28658717]
[1733678022798,0.00178962,99810.0,99809.0,0.28558541]
[1733678024307,0.00178962,99810.0,99809.0,0.37536544]
[1733678025352,0.00178962,99810.0,99809.0,0.28558541]
[1733678025729,0.00178962,99810.0,99809.0,0.2855883]
[1733678026704,0.00178962,99810.0,99809.0,0.61712534]
[1733678026831,0.0017324,99820.0,99809.0,0.61712534]
[1733678027043,0.0017324,99820.0,99819.0,0.180326]
[1733678027232,0.0017324,99820.0,99819.0,0.18881594]
[1733678027662,0.0017324,99820.0,99819.0,0.69997339]
[1733678027867,0.0017324,99820.0,99819.0,0.74455261]
[1733678028066,0.0017324,99820.0,99819.0,0.96908238]
[1733678028477,0.0017324,99820.0,99819.0,0.74455261]
[1733678028678,0.0027324,99820.0,99819.0,0.74455261]
[1733678029063,0.0027324,99820.0,99819.0,0.74454643]
[1733678029268,0.0027324,99820.0,99819.0,0.92405925]
[1733678029650,0.0017312,99850.0,99826.0,0.0752]
[1733678029857,0.0017312,99850.0,99849.0,0.180272]
[1733678030104,0.0017312,99850.0,99849.0,0.18775412]
[1733678031085,0.00230591,99850.0,99849.0,0.18775412]
[1733678031696,0.00230591,99850.0,99849.0,0.33875548]
[1733678031889,0.00830591,99850.0,99849.0,0.3486087]
[1733678032298,0.01230591,99850.0,99849.0,0.34859253]
[1733678032698,0.00230591,99850.0,99849.0,0.34012658]
[1733678032925,0.00230591,99850.0,99849.0,0.34759241]
[1733678035211,0.00230591,99850.0,99849.0,0.35159241]
[1733678035422,0.00230591,99850.0,99849.0,0.35359241]
[1733678037910,0.00230591,99850.0,99849.0,0.35957437]
[1733678038118,0.00230591,99850.0,99849.0,0.38257437]
[1733678038534,0.00230591,99850.0,99849.0,0.38417572]
[1733678039118,0.00230591,99850.0,99849.0,0.37670989]
[1733678039329,0.00230591,99850.0,99849.0,0.38416523]
[1733678042064,0.04401804,99879.0,99849.0,0.38416523]
[1733678042065,0.04401804,99879.0,99869.0,0.180236]
[1733678042308,0.00190527,99870.0,99869.0,0.180236]
[1733678043381,0.00390527,99870.0,99869.0,0.180236]
[1733678044410,0.00490527,99870.0,99869.0,0.180236]
[1733678045053,0.00190527,99870.0,99869.0,0.180236]
[1733678045495,0.00490527,99870.0,99869.0,0.180236]
[1733678045707,0.00290527,99870.0,99869.0,0.180236]
[1733678047423,0.00290527,99870.0,99869.0,0.18769771]
[1733678049987,0.00290527,99870.0,99869.0,0.180236]
[1733678066331,0.00290527,99870.0,99857.0,0.26987085]
[1733678066595,0.00290527,99870.0,99849.0,0.15]
[1733678066596,0.22427904,99855.0,99845.0,0.08961485]
[1733678066762,0.04401804,99852.0,99840.0,0.07667378]
[1733678066962,0.04401804,99852.0,99846.0,0.180277]
[1733678066963,0.14404755,99852.0,99846.0,0.180277]
[1733678067269,0.00513764,99851.0,99846.0,0.180277]
[1733678068460,0.04401804,99849.0,99841.0,0.180286]
[1733678068670,0.14404755,99849.0,99840.0,0.07667378]
[1733678068907,0.00513033,99848.0,99842.0,0.180284]
[1733678069565,0.00513033,99848.0,99842.0,0.360568]
[1733678069812,0.00513033,99848.0,99846.0,0.180277]
[1733678070044,0.0498,99851.0,99850.0,0.18027]
[1733678070045,0.001,99851.0,99850.0,0.18027]
[1733678070517,0.04401804,99853.0,99847.0,0.08974505]
[1733678070648,0.04401804,99853.0,99844.0,0.18028]
[1733678070649,0.0488,99852.0,99844.0,0.18028]
[1733678070855,0.00512838,99851.0,99844.0,0.360561]
[1733678071072,0.0488,99852.0,99840.0,0.07667378]
[1733678071270,0.04401804,99848.0,99841.0,0.180286]
[1733678071474,0.00512848,99847.0,99841.0,0.180286]
[1733678072307,0.00512848,99847.0,99845.0,0.180278]
[1733678074475,0.00512848,99847.0,99840.0,0.000865]
[1733678074476,0.0819,99842.0,99840.0,0.000865]
[1733678074679,0.00512843,99841.0,99840.0,0.000865]
[1733678076901,0.00512843,99841.0,99840.0,0.003865]
[1733678077111,0.00512843,99841.0,99840.0,0.009865]
[1733678077548,0.00512843,99841.0,99840.0,0.006865]
[1733678077801,0.10515794,99841.0,99840.0,0.009865]
[1733678078020,0.14917598,99841.0,99840.0,0.009865]
[1733678078446,0.14917598,99841.0,99840.0,0.006865]
[1733678078718,0.00512843,99841.0,99840.0,0.006865]
[1733678078960,0.04401804,99848.0,99847.0,0.180275]
[1733678079463,0.00511268,99848.0,99847.0,0.180275]
[1733678079946,0.09241669,99848.0,99847.0,0.180275]
[1733678080427,0.09752937,99848.0,99847.0,0.180275]
[1733678080633,0.04913072,99848.0,99847.0,0.180275]
[1733678081056,0.09752937,99848.0,99847.0,0.180275]
[1733678081601,0.05013072,99848.0,99847.0,0.180275]
[1733678082588,0.09852937,99848.0,99847.0,0.180275]
[1733678082797,0.05013072,99848.0,99847.0,0.180275]
[1733678083175,0.09852937,99848.0,99847.0,0.180275]
[1733678083377,0.05451133,99848.0,99847.0,0.180275]
[1733678083606,0.00611268,99848.0,99847.0,0.180275]
[1733678083969,0.001,99848.0,99847.0,0.180275]
[1733678086201,0.001,99848.0,99847.0,0.17747449]
[1733678087191,0.04839865,99851.0,99850.0,0.001]
[1733678087399,0.04839865,99851.0,99850.0,0.00171955]
[1733678088044,0.05351158,99851.0,99850.0,0.18198955]
[1733678088259,0.04839865,99851.0,99850.0,0.18198955]
[1733678088475,0.05351169,99851.0,99850.0,0.18198955]
[1733678091706,0.05351169,99851.0,99850.0,0.18398955]
[1733678092137,0.04839865,99851.0,99850.0,0.18398955]
[1733678093027,0.05351125,99851.0,99850.0,0.18398955]
[1733678093221,0.05154987,99851.0,99850.0,0.18398955]
[1733678093432,0.04643727,99851.0,99850.0,0.18398955]
[1733678095310,0.05154997,99851.0,99850.0,0.18398955]
[1733678095502,0.04643727,99851.0,99850.0,0.18398955]
[1733678095624,0.05154992,99851.0,99850.0,0.18398955]
[1733678095825,0.04643727,99851.0,99850.0,0.18398955]
[1733678098891,0.12433727,99856.0,99855.0,0.180261]
[1733678099129,0.12944785,99856.0,99855.0,0.180261]
[1733678100432,0.00511058,99856.0,99855.0,0.180261]
[1733678100631,0.00511058,99856.0,99855.0,0.18126229]
[1733678100807,0.00173,99860.0,99859.0,0.180254]
[1733678102036,0.00373,99860.0,99859.0,0.180254]
[1733678102495,0.00473,99860.0,99859.0,0.180254]
[1733678103186,0.00373,99860.0,99859.0,0.180254]
[1733678103409,0.00373,99860.0,99850.0,0.27182177]
[1733678103410,0.04401804,99857.0,99850.0,0.27182177]
[1733678103649,0.14404755,99857.0,99852.0,0.180266]
[1733678103916,0.00511596,99856.0,99852.0,0.180266]
[1733678104149,0.00511596,99856.0,99852.0,0.360532]
[1733678104375,0.14404755,99857.0,99852.0,0.360532]
[1733678105062,0.14404755,99857.0,99852.0,0.180266]
[1733678105307,0.14404755,99857.0,99856.0,0.180259]
[1733678106273,0.10002951,99857.0,99856.0,0.180259]
[1733678106681,0.10102951,99857.0,99856.0,0.180259]
[1733678107138,0.10002951,99857.0,99856.0,0.180259]
[1733678107356,0.10102951,99857.0,99856.0,0.180259]
[1733678107836,0.001,99857.0,99856.0,0.180259]
[1733678108568,0.04816727,99860.0,99856.0,0.180259]
[1733678108818,0.00173,99860.0,99857.0,0.180257]
[1733678109268,0.00173,99860.0,99858.0,0.00100132]
[1733678109470,0.00173,99860.0,99857.0,0.180257]
[1733678109471,0.00173,99860.0,99859.0,0.180254]
[1733678109912,0.00173,99860.0,99859.0,0.18775529]
[1733678110571,0.00173,99860.0,99859.0,0.180254]
[1733678110805,0.00173,99860.0,99859.0,0.18775555]
[1733678111001,0.00173,99860.0,99859.0,0.181254]
[1733678111742,0.00173,99860.0,99859.0,0.27958802]
[1733678112324,0.00173,99860.0,99859.0,0.1897558]
[1733678112618,0.00173,99860.0,99859.0,0.18975623]
[1733678113199,0.08443,99860.0,99859.0,0.18975623]
[1733678113342,0.22847755,99860.0,99859.0,0.00950223]
[1733678113546,0.23360287,99860.0,99859.0,0.00950223]
[1733678118527,0.18958483,99860.0,99859.0,0.00950223]
[1733678118938,0.08955532,99860.0,99859.0,0.00950223]
[1733678119171,0.00685532,99860.0,99859.0,0.00950223]
[1733678119416,0.00685532,99860.0,99859.0,0.09947454]
[1733678119662,0.00173,99860.0,99859.0,0.14425056]
[1733678119883,0.00173,99860.0,99859.0,0.14525186]
[1733678120348,0.00173,99860.0,99859.0,0.34258827]
[1733678120610,0.00173,99860.0,99859.0,0.34153587]
[1733678120839,0.00173,99860.0,99859.0,0.34153544]
[1733678121735,0.00173,99860.0,99859.0,0.57664691]
[1733678121961,0.00173,99860.0,99859.0,0.57370292]
[1733678122175,0.00173,99860.0,99859.0,0.34882504]
[1733678122385,0.00173,99860.0,99859.0,0.57370292]
[1733678122592,0.00173,99860.0,99859.0,0.34882504]
[1733678123039,0.00173,99860.0,99859.0,0.57370292]
[1733678123254,0.00173,99860.0,99859.0,0.57367502]
[1733678127557,0.00173,99860.0,99859.0,0.56711721]
[1733678129990,0.00173,99860.0,99859.0,0.56712846]
[1733678130218,0.00078447,99860.0,99859.0,0.56712846]
[1733678130832,0.00078447,99860.0,99859.0,0.34226239]
[1733678131037,0.00078447,99860.0,99859.0,0.56712846]
[1733678132516,0.00078447,99860.0,99859.0,0.34226239]
[1733678132725,0.00078447,99860.0,99859.0,0.52216353]
[1733678132947,0.00078447,99860.0,99859.0,0.34226239]
[1733678134066,0.00078447,99860.0,99859.0,0.34976136]
[1733678134726,0.00078447,99860.0,99859.0,0.34978818]
[1733678137520,0.00078447,99860.0,99859.0,0.34228921]
[1733678137751,0.00078447,99860.0,99859.0,0.34978862]
[1733678139429,0.00078447,99860.0,99859.0,0.57467285]
[1733678141098,0.00078447,99860.0,99859.0,0.34978862]
[1733678142483,0.00078447,99860.0,99859.0,0.33955503]
[1733678142717,0.08398447,99860.0,99859.0,0.18742812]
[1733678142934,0.08398447,99860.0,99859.0,0.00749941]
[1733678144251,0.08398447,99860.0,99859.0,0.00750238]
[1733678144467,0.08398447,99860.0,99859.0,0.14247883]
[1733678147098,0.08398447,99860.0,99859.0,0.14192429]
[1733678147952,0.13042174,99860.0,99859.0,0.09694563]
[1733678148372,0.13553736,99860.0,99859.0,0.00694784]
[1733678150211,0.27958491,99860.0,99859.0,0.00694784]
[1733678150441,0.32708491,99860.0,99859.0,0.00694784]
[1733678151421,0.04643727,99851.0,99850.0,0.00258455]
[1733678151658,0.22716678,99851.0,99850.0,0.00258455]
[1733678151882,0.232279,99851.0,99850.0,0.00258455]
[1733678153032,0.235279,99851.0,99850.0,0.00258455]
[1733678153260,0.28029704,99851.0,99850.0,0.00258455]
[1733678154202,0.32779704,99851.0,99850.0,0.00258455]
[1733678156275,0.33787546,99851.0,99850.0,0.00258455]
[1733678156466,0.35763786,99851.0,99850.0,0.00258455]
[1733678157341,0.38063786,99851.0,99850.0,0.00258455]
[1733678157819,0.308486,99841.0,99840.0,0.000865]
[1733678158033,0.40851551,99841.0,99840.0,0.000865]
[1733678158249,0.41258853,99841.0,99840.0,0.000865]
[1733678158462,0.4590258,99841.0,99840.0,0.000865]
[1733678158681,0.32275784,99841.0,99840.0,0.000865]
[1733678159387,0.32275784,99841.0,99840.0,0.001865]
[1733678159388,0.32675784,99841.0,99840.0,0.001865]
[1733678159813,0.32275784,99841.0,99840.0,0.000865]
[1733678160041,0.32275784,99841.0,99840.0,0.001865]
[1733678160042,0.32675784,99841.0,99840.0,0.001865]
[1733678160293,0.33075784,99841.0,99840.0,0.001865]
[1733678161396,0.32275784,99841.0,99840.0,0.000865]
[1733678161609,0.32575784,99841.0,99840.0,0.000865]
[1733678162065,0.32975784,99841.0,99840.0,0.001865]
[1733678162530,0.32975784,99841.0,99802.0,0.180356]
[1733678162531,0.04401804,99815.0,99802.0,0.180356]
[1733678162734,0.04643727,99816.0,99801.0,0.15]
[1733678162735,0.04401804,99809.0,99801.0,0.15]
[1733678163031,0.10002951,99808.0,99800.0,0.1812243]
[1733678163231,0.04401804,99807.0,99800.0,0.1812243]
[1733678163440,0.1040935,99808.0,99800.0,0.0008653]
[1733678163441,0.09045531,99804.0,99800.0,0.0008653]
[1733678163641,0.10002951,99803.0,99801.0,0.180358]
[1733678163852,0.04643727,99810.0,99809.0,0.180344]
[1733678164063,0.04643727,99816.0,99809.0,0.180344]
[1733678164323,0.04643727,99816.0,99802.0,0.00100187]
[1733678164324,0.04643727,99827.0,99822.0,0.36064]
[1733678164505,0.0823,99838.0,99825.0,0.180315]
[1733678164506,0.04401804,99834.0,99825.0,0.180315]
[1733678164717,0.04401804,99834.0,99821.0,0.00100168]
[1733678164718,0.04643727,99832.0,99821.0,0.00100168]
[1733678164918,0.14646678,99832.0,99817.0,0.0797]
[1733678165142,0.04643727,99825.0,99810.0,0.0797]
[1733678165336,0.14646678,99824.0,99810.0,0.07581354]
[1733678165565,0.14646678,99824.0,99808.0,0.15]
[1733678165566,0.04643727,99824.0,99819.0,0.180326]
[1733678165770,0.04643727,99824.0,99815.0,0.25614554]
[1733678165771,0.04643727,99824.0,99818.0,0.0821]
[1733678165981,0.04643727,99824.0,99823.0,0.180319]
[1733678166203,0.04643727,99824.0,99819.0,0.180326]
[1733678166409,0.04643727,99820.0,99812.0,0.180337]
[1733678166642,0.04643727,99812.0,99799.0,0.0821]
[1733678166909,0.04643727,99812.0,99807.0,0.360693]
[1733678167403,0.04643727,99807.0,99800.0,0.18179901]
[1733678167628,0.04643727,99807.0,99805.0,0.180351]
[1733678169118,0.04643727,99807.0,99805.0,0.186351]
[1733678169323,0.04643727,99807.0,99805.0,0.189351]
[1733678169535,0.00404183,99806.0,99805.0,0.189351]
[1733678169949,0.00404183,99806.0,99805.0,0.183351]
[1733678170427,0.00404183,99806.0,99805.0,0.003]
[1733678170655,0.00404183,99806.0,99800.0,0.18179901]
[1733678170656,0.04643727,99805.0,99800.0,0.18179901]
[1733678171089,0.05047901,99804.0,99800.0,0.18179901]
[1733678171971,0.05047901,99804.0,99800.0,0.18479901]
[1733678172442,0.04743727,99804.0,99800.0,0.36915901]
[1733678172865,0.04743727,99804.0,99800.0,0.37215901]
[1733678173818,0.04743727,99804.0,99802.0,0.180357]
[1733678174267,0.04643727,99821.0,99818.0,0.180327]
[1733678174508,0.04643727,99821.0,99818.0,0.360654]
[1733678174717,0.00403561,99820.0,99818.0,0.360654]
[1733678175145,0.04643727,99821.0,99818.0,0.180327]
[1733678175360,0.04643727,99821.0,99819.0,0.180326]
[1733678175576,0.04643727,99826.0,99820.0,0.180324]
[1733678175787,0.04643727,99821.0,99820.0,0.180324]
[1733678176441,0.04643727,99825.0,99820.0,0.180324]
[1733678176646,0.04643727,99825.0,99814.0,0.180334]
[1733678176647,0.04643727,99823.0,99822.0,0.18032]
[1733678177090,0.05047288,99823.0,99822.0,0.18032]
[1733678178135,0.05147288,99823.0,99822.0,0.18032]
[1733678181674,0.00503561,99823.0,99822.0,0.18032]
[1733678181887,0.05147288,99823.0,99822.0,0.18032]
[1733678182541,0.05147288,99823.0,99814.0,0.180334]
[1733678182542,0.12863727,99820.0,99814.0,0.180334]
[1733678182760,0.12863727,99820.0,99818.0,0.180327]
[1733678182974,0.0040369,99819.0,99818.0,0.180327]
[1733678183181,0.04643727,99820.0,99818.0,0.180327]
[1733678183392,0.00403689,99819.0,99818.0,0.180327]
[1733678184913,0.00403689,99819.0,99818.0,0.181327]
[1733678185531,0.19452171,99819.0,99818.0,0.001]
[1733678186594,0.24042171,99819.0,99818.0,0.001]
[1733678187515,0.24042171,99819.0,99810.0,0.0008654]
[1733678187727,0.10002951,99818.0,99810.0,0.0008654]
[1733678187933,0.10406545,99818.0,99810.0,0.0008654]
[1733678188143,0.04643727,99811.0,99810.0,0.0008654]
[1733678189049,0.04643727,99811.0,99810.0,0.0018654]
[1733678189258,0.04643727,99811.0,99810.0,0.0008654]
[1733678190110,0.12863727,99811.0,99810.0,0.0008654]
[1733678190318,0.13266922,99811.0,99810.0,0.0008654]
[1733678190589,0.13266922,99811.0,99810.0,0.0048654]
[1733678190828,0.23269873,99811.0,99810.0,0.0048654]
[1733678191064,0.27671677,99811.0,99810.0,0.0048654]
[1733678192265,0.27671677,99811.0,99810.0,0.0028654]
[1733678192721,0.27671677,99811.0,99810.0,0.0008654]
[1733678194355,0.27871677,99811.0,99810.0,0.0008654]
[1733678194819,0.28371677,99811.0,99810.0,0.0008654]
[1733678197811,0.28371677,99811.0,99810.0,0.0008654]
[1733678199477,0.28602263,99811.0,99810.0,0.0008654]
[1733678204297,0.20382263,99811.0,99810.0,0.0008654]
[1733678205364,0.15980459,99811.0,99810.0,0.0008654]
[1733678206220,0.15480459,99811.0,99810.0,0.0008654]
[1733678206683,0.15980459,99811.0,99810.0,0.0008654]
[1733678206937,0.15480459,99811.0,99810.0,0.0008654]
[1733678207161,0.15580459,99811.0,99810.0,0.0008654]
[1733678207619,0.15780459,99811.0,99810.0,0.0008654]
[1733678207853,0.15480459,99811.0,99810.0,0.0008654]